fUST/lending_fUST_20250830
["ID","MTS","AMOUNT","RATE_DAILY","PERIOD"]
[382202059,1756543846658,-635.39,0.00020255,2]
[382202060,1756543846668,-480.0,0.00020255,2]
[382202061,1756543846678,-480.0,0.00020255,2]
[382202062,1756543846687,-480.0,0.00020255,2]
[382202063,1756543846697,-480.0,0.00020255,2]
[382202064,1756543846706,-524.74590697,0.00020255,2]
[382202065,1756543846716,-480.0,0.00020255,2]
[382202066,1756543846726,-480.0,0.00020255,2]
[382202067,1756543846737,-480.0,0.00020255,2]
[382202068,1756543846746,-480.0,0.00020255,2]
[382202069,1756543846756,-480.0,0.00020255,2]
[382202070,1756543846765,-480.0,0.00020255,2]
[382202071,1756543846775,-1000.0,0.00020255,2]
[382202072,1756543846784,-1000.0,0.00020255,2]
[382202073,1756543846793,-1000.0,0.00020255,2]
[382202074,1756543846803,-480.0,0.00020255,2]
[382202075,1756543846812,-480.0,0.00020255,2]
[382202076,1756543846822,-480.0,0.00020255,2]
[382202077,1756543846831,-496.85,0.00020255,2]
[382202078,1756543846840,-480.0,0.00020255,2]
[382202079,1756543846850,-480.0,0.00020255,2]
[382202080,1756543846859,-480.0,0.00020255,2]
[382202081,1756543846868,-496.81,0.00020256,2]
[382202082,1756543846878,-809.83,0.00020256,2]
[382202083,1756543846887,-1023.75,0.00020256,2]
[382202084,1756543846896,-1207.63,0.00020256,2]
[382202085,1756543846906,-480.0,0.00020256,2]
[382202086,1756543846916,-480.0,0.00020256,2]
[382202087,1756543846925,-480.0,0.00020256,2]
[382202088,1756543846935,-480.0,0.00020256,2]
[382202089,1756543846944,-480.0,0.00020256,2]
[382202090,1756543846955,-480.0,0.00020256,2]
[382202091,1756543846964,-480.0,0.00020256,2]
[382202092,1756543846973,-1000.0,0.00020257,2]
[382202093,1756543846983,-1000.0,0.00020257,2]
[382202094,1756543846992,-400.92377988,0.00020273,2]
[382202095,1756543847002,-407.15470342,0.00020273,2]
[382202096,1756543847011,-500.0,0.00020273,2]
[382202097,1756543847021,-500.0,0.00020273,2]
[382202098,1756543847030,-500.9049458,0.00020273,2]
[382202099,1756543847039,-500.0,0.00020273,2]
[382202100,1756543847050,-497.66680241,0.00020273,2]
[382202101,1756543847059,-537.30438002,0.00020273,2]
[382202102,1756543847068,-500.0,0.00020273,2]
[382202103,1756543847077,-608.64124363,0.00020273,2]
[382202104,1756543847087,-500.0,0.00020273,2]
[382202105,1756543847096,-500.0,0.00020273,2]
[382202106,1756543847107,-500.0,0.00020273,2]
[382202107,1756543847118,-500.0,0.00020273,2]
[382202108,1756543847127,-500.0,0.00020273,2]
[382202109,1756543847137,-500.0,0.00020273,2]
[382202110,1756543847147,-500.0,0.00020273,2]
[382202111,1756543847158,-500.0,0.00020273,2]
[382202112,1756543847168,-500.0,0.00020273,2]
[382202113,1756543847179,-500.0,0.00020273,2]
[382202114,1756543847188,-500.0,0.00020273,2]
[382202115,1756543847197,-500.0,0.00020273,2]
[382202116,1756543847207,-508.78846885,0.00020273,2]
[382202117,1756543847216,-500.0,0.00020273,2]
[382202118,1756543847226,-500.0,0.00020273,2]
[382202119,1756543847237,-500.0,0.00020273,2]
[382202120,1756543847246,-500.0,0.00020273,2]
[382202121,1756543847255,-500.0,0.00020273,2]
[382202122,1756543847265,-289.75713532,0.00020273,2]
[382202123,1756543847275,-151.0,0.00020273,2]
[382202124,1756543847284,-151.0,0.00020273,2]
[382202125,1756543847293,-2434.74389024,0.00020278,2]
[382202126,1756543847303,-419.65639024,0.00020287,2]
[382202127,1756543847312,-2524.82941417,0.00020333,2]
[382202128,1756543847322,-1000.0,0.00020337,2]
[382202129,1756543847331,-419.65639024,0.00020338,2]
[382202130,1756543847341,-1000.0,0.00020338,2]
[382202131,1756543847350,-534.85,0.00020368,2]
[382202132,1756543847360,-2618.2481025,0.00020388,2]
[382202133,1756543847369,-1000.0,0.00020436,2]
[382202134,1756543847379,-726.6526497,0.00020437,2]
[382202135,1756543847388,-530.30430725,0.00020443,2]
[382202136,1756543847397,-480.0,0.00020506,2]
[382202137,1756543847406,-1087.51,0.00020506,2]
[382202138,1756543847416,-485.13110761,0.00020506,2]
[382202139,1756543847426,-480.0,0.00020506,2]
[382202140,1756543847435,-990.03,0.00020506,2]
[382202141,1756543847444,-480.0,0.00020507,2]
[382202142,1756543847453,-861.66,0.00020507,2]
[382202143,1756543847462,-922.2,0.00020507,2]
[382202144,1756543847471,-1690.52,0.00020507,2]
[382202145,1756543847480,-1785.2,0.00020507,2]
[382202146,1756543847490,-948.81,0.00020507,2]
[382202147,1756543847498,-480.0,0.00020507,2]
[382202148,1756543847506,-480.0,0.00020507,2]
[382202149,1756543847515,-2414.54,0.00020507,2]
[382202150,1756543847523,-480.0,0.00020507,2]
[382202151,1756543847532,-480.0,0.00020508,2]
[382202152,1756543847542,-480.0,0.00020508,2]
[382202153,1756543847551,-480.0,0.00020508,2]
[382202154,1756543847560,-563.39,0.00020508,2]
[382202155,1756543847571,-480.0,0.00020508,2]
[382202156,1756543847582,-480.0,0.00020508,2]
[382202157,1756543847591,-1479.36,0.00020508,2]
[382202158,1756543847601,-480.0,0.00020508,2]
[382202159,1756543847611,-480.0,0.00020508,2]
[382202160,1756543847620,-480.0,0.00020508,2]
[382202161,1756543847630,-480.0,0.00020508,2]
[382202162,1756543847639,-480.0,0.00020508,2]
[382202163,1756543847651,-480.0,0.00020508,2]
[382202164,1756543847660,-480.0,0.00020508,2]
[382202165,1756543847671,-480.0,0.00020508,2]
[382202166,1756543847681,-516.84,0.00020508,2]
[382202167,1756543847689,-480.0,0.00020508,2]
[382202168,1756543847698,-480.0,0.00020508,2]
[382202169,1756543847707,-480.0,0.00020508,2]
[382202170,1756543847718,-480.0,0.00020508,2]
[382202171,1756543847728,-529.37,0.00020508,2]
[382202172,1756543847738,-480.0,0.00020508,2]
[382202173,1756543847748,-837.27,0.00020508,2]
[382202174,1756543847757,-480.0,0.00020508,2]
[382202175,1756543847767,-480.0,0.00020508,2]
[382202176,1756543847776,-480.0,0.00020508,2]
[382202177,1756543847785,-604.67,0.00020508,2]
[382202178,1756543847795,-480.0,0.00020508,2]
[382202179,1756543847806,-480.0,0.00020508,2]
[382202180,1756543847817,-480.0,0.00020508,2]
[382202181,1756543847827,-480.0,0.00020508,2]
[382202182,1756543847836,-480.0,0.00020508,2]
[382202183,1756543847846,-480.0,0.00020508,2]
[382202184,1756543847856,-480.0,0.00020508,2]
[382202185,1756543847865,-697.57,0.00020508,2]
[382202186,1756543847874,-818.08,0.00020508,2]
[382202187,1756543847883,-615.37,0.00020508,2]
[382202188,1756543847893,-480.0,0.00020508,2]
[382202189,1756543847902,-1007.9,0.00020508,2]
[382202190,1756543847912,-480.0,0.00020508,2]
[382202191,1756543847921,-576.9,0.00020508,2]
[382202192,1756543847932,-984.23,0.00020508,2]
[382202193,1756543847941,-480.0,0.00020508,2]
[382202194,1756543847951,-480.0,0.00020508,2]
[382202195,1756543847960,-480.0,0.00020508,2]
[382202196,1756543847969,-480.0,0.00020508,2]
[382202197,1756543847979,-480.0,0.00020508,2]
[382202198,1756543847987,-480.0,0.00020508,2]
[382202199,1756543847997,-480.0,0.00020508,2]
[382202200,1756543848007,-480.0,0.00020509,2]
[382202201,1756543848016,-1066.94,0.00020509,2]
[382202202,1756543848027,-766.09,0.00020509,2]
[382202203,1756543848037,-480.0,0.00020509,2]
[382202204,1756543848047,-995.45,0.00020509,2]
[382202205,1756543848056,-480.0,0.00020509,2]
[382202206,1756543848066,-1204.25,0.00020509,2]
[382202207,1756543848075,-1167.52,0.00020509,2]
[382202208,1756543848085,-825.92,0.00020509,2]
[382202209,1756543848094,-3998.12,0.00020509,2]
[382202210,1756543848104,-970.44,0.00020509,2]
[382202211,1756543848113,-480.0,0.00020509,2]
[382202212,1756543848123,-480.0,0.00020509,2]
[382202213,1756543848133,-1476.44,0.00020509,2]
[382202214,1756543848143,-2883.07,0.00020509,2]
[382202215,1756543848152,-987.47,0.00020509,2]
[382202216,1756543848161,-2042.88,0.00020509,2]
[382202217,1756543848171,-1231.38,0.00020509,2]
[382202218,1756543848181,-480.0,0.00020509,2]
[382202219,1756543848191,-888.94,0.00020509,2]
[382202220,1756543848200,-480.0,0.00020509,2]
[382202221,1756543848210,-480.0,0.00020509,2]
[382202222,1756543848220,-480.0,0.00020519,2]
[382202223,1756543848230,-480.0,0.00020519,2]
[382202224,1756543848239,-480.0,0.00020519,2]
[382202225,1756543848248,-480.0,0.00020519,2]
[382202226,1756543848257,-480.0,0.00020519,2]
[382202227,1756543848267,-936.42,0.00020519,2]
[382202228,1756543848276,-1257.12,0.00020519,2]
[382202229,1756543848286,-501.42,0.00020519,2]
[382202230,1756543848295,-1103.43,0.00020519,2]
[382202231,1756543848304,-1077.88,0.00020519,2]
[382202232,1756543848314,-480.0,0.00020519,2]
[382202233,1756543848324,-480.0,0.0002052,2]
[382202234,1756543848334,-529.60670259,0.0002052,2]
[382202235,1756543848343,-480.0,0.0002052,2]
[382202236,1756543848352,-480.0,0.0002052,2]
[382202237,1756543848361,-754.48,0.0002052,2]
[382202238,1756543848371,-604.06,0.0002052,2]
[382202239,1756543848381,-935.88,0.0002052,2]
[382202240,1756543848390,-1150.56,0.0002052,2]
[382202241,1756543848401,-990.08,0.0002052,2]
[382202242,1756543848410,-939.9,0.0002052,2]
[382202243,1756543848420,-224.2918843,0.0002052,2]
[382202244,1756543848430,-480.0,0.0002052,2]
[382202245,1756543848439,-480.0,0.0002052,2]
[382202246,1756543848448,-482.39527012,0.0002052,2]
[382202247,1756543848458,-593.16,0.0002052,2]
[382202248,1756543848467,-996.84,0.0002052,2]
[382202249,1756543848476,-649.58,0.0002052,2]
[382202250,1756543848485,-480.0,0.0002052,2]
[382202251,1756543848495,-1070.49,0.0002052,2]
[382202252,1756543848504,-1190.2,0.0002052,2]
[382202253,1756543848513,-480.0,0.0002052,2]
[382202254,1756543848523,-481.00032018,0.0002052,2]
[382202255,1756543848532,-249.46633575,0.0002052,2]
[382202256,1756543848541,-480.0,0.0002052,2]
[382202257,1756543848551,-480.0,0.0002052,2]
[382202258,1756543848560,-480.0,0.0002052,2]
[382202259,1756543848573,-1066.37,0.0002052,2]
[382202260,1756543848583,-1399.67,0.0002052,2]
[382202261,1756543848592,-885.12,0.0002052,2]
[382202262,1756543848601,-480.0,0.0002052,2]
[382202263,1756543848611,-1285.54,0.0002052,2]
[382202264,1756543848620,-1331.47,0.0002052,2]
[382202265,1756543848630,-1502.12,0.0002052,2]
[382202266,1756543848639,-480.0,0.0002052,2]
[382202267,1756543848649,-480.0,0.0002052,2]
[382202268,1756543848659,-655.08,0.0002052,2]
[382202269,1756543848669,-480.0,0.0002052,2]
[382202270,1756543848679,-1072.84,0.0002052,2]
[382202271,1756543848689,-480.0,0.0002052,2]
[382202272,1756543848699,-480.0,0.0002052,2]
[382202273,1756543848708,-886.71,0.0002052,2]
[382202274,1756543848719,-480.0,0.0002052,2]
[382202275,1756543848728,-537.89,0.0002052,2]
[382202276,1756543848738,-480.0,0.0002052,2]
[382202277,1756543848747,-539.26,0.0002052,2]
[382202278,1756543848757,-1186.1,0.0002052,2]
[382202279,1756543848768,-484.99,0.0002052,2]
[382202280,1756543848777,-564.85599606,0.0002052,2]
[382202281,1756543848787,-480.0,0.0002052,2]
[382202282,1756543848797,-785.97,0.0002052,2]
[382202283,1756543848807,-493.54,0.0002052,2]
[382202284,1756543848817,-996.5,0.0002052,2]
[382202285,1756543848827,-435.60249108,0.0002052,2]
[382202286,1756543848837,-480.0,0.0002052,2]
[382202287,1756543848847,-480.0,0.0002052,2]
[382202288,1756543848857,-631.5,0.0002052,2]
[382202289,1756543848867,-956.33,0.0002052,2]
[382202290,1756543848877,-480.0,0.00020521,2]
[382202291,1756543848888,-480.0,0.00020521,2]
[382202292,1756543848899,-370.24640488,0.00020521,2]
[382202293,1756543848909,-481.00183348,0.00020521,2]
[382202294,1756543848919,-480.0,0.00020521,2]
[382202295,1756543848930,-151.0,0.00020521,2]
[382202296,1756543848940,-151.0,0.00020521,2]
[382202297,1756543848950,-151.0,0.00020521,2]
[382202298,1756543848960,-563.2,0.00020521,2]
[382202299,1756543848967,-956.53,0.00020521,2]
[382202300,1756543848977,-480.0,0.00020521,2]
[382202301,1756543848987,-1063.97,0.00020521,2]
[382202302,1756543848997,-480.0,0.00020521,2]
[382202303,1756543849006,-1246.5,0.00020521,2]
[382202304,1756543849015,-480.0,0.00020521,2]
[382202305,1756543849025,-4740.55,0.00020521,2]
[382202306,1756543849035,-1087.43,0.00020521,2]
[382202307,1756543849044,-1775.81,0.00020521,2]
[382202308,1756543849054,-507.78,0.00020521,2]
[382202309,1756543849063,-1277.81,0.00020521,2]
[382202310,1756543849073,-6468.03,0.00020521,2]
[382202311,1756543849083,-1533.73,0.00020521,2]
[382202312,1756543849093,-1158.54,0.00020521,2]
[382202313,1756543849103,-2328.8,0.00020521,2]
[382202314,1756543849113,-5925.0,0.00020521,2]
[382202315,1756543849123,-675.82,0.00020521,2]
[382202316,1756543849133,-1018.4,0.00020524,2]
[382202317,1756543849143,-1127.19,0.00020524,2]
[382202318,1756543849153,-915.42,0.00020524,2]
[382202319,1756543849163,-480.0,0.00020524,2]
[382202320,1756543849173,-2794.57,0.00020524,2]
[382202321,1756543849182,-1158.02,0.00020524,2]
[382202322,1756543849192,-4004.89,0.00020524,2]
[382202323,1756543849202,-1287.36,0.00020524,2]
[382202324,1756543849211,-870.86,0.00020524,2]
[382202325,1756543849220,-603.96,0.00020524,2]
[382202326,1756543849230,-1246.96,0.00020524,2]
[382202327,1756543849239,-480.0,0.00020525,2]
[382202328,1756543849248,-480.0,0.00020525,2]
[382202329,1756543849258,-480.0,0.00020525,2]
[382202330,1756543849267,-480.0,0.00020525,2]
[382202331,1756543849276,-480.0,0.00020525,2]
[382202332,1756543849433,-480.0,0.00020525,2]
[382202333,1756543849443,-480.0,0.00020525,2]
[382202334,1756543849453,-1227.5,0.00020525,2]
[382202335,1756543849463,-480.0,0.00020525,2]
[382202336,1756543849472,-480.0,0.00020525,2]
[382202337,1756543849482,-480.0,0.00020525,2]
[382202338,1756543849491,-480.0,0.00020525,2]
[382202339,1756543849501,-480.0,0.00020525,2]
[382202340,1756543849510,-480.0,0.00020525,2]
[382202341,1756543849519,-480.0,0.00020525,2]
[382202342,1756543849528,-480.0,0.00020525,2]
[382202343,1756543849538,-480.0,0.00020525,2]
[382202344,1756543849549,-480.0,0.00020525,2]
[382202345,1756543849559,-480.0,0.00020525,2]
[382202346,1756543849568,-480.0,0.00020525,2]
[382202347,1756543849582,-480.0,0.00020525,2]
[382202348,1756543849591,-480.0,0.00020525,2]
[382202349,1756543849600,-480.0,0.00020525,2]
[382202350,1756543849609,-484.60290176,0.00020525,2]
[382202351,1756543849620,-480.0,0.00020525,2]
[382202352,1756543849629,-480.0,0.00020525,2]
[382202353,1756543849639,-480.0,0.00020525,2]
[382202354,1756543849649,-483.09,0.00020525,2]
[382202355,1756543849658,-480.0,0.00020525,2]
[382202356,1756543849667,-480.0,0.00020525,2]
[382202357,1756543849678,-480.0,0.00020525,2]
[382202358,1756543849687,-480.0,0.00020525,2]
[382202359,1756543849696,-480.0,0.00020525,2]
[382202360,1756543849705,-480.0,0.00020525,2]
[382202361,1756543849715,-480.0,0.00020525,2]
[382202362,1756543849726,-480.0,0.00020525,2]
[382202363,1756543849735,-511.73,0.00020525,2]
[382202364,1756543849745,-480.0,0.00020525,2]
[382202365,1756543849754,-480.0,0.00020525,2]
[382202366,1756543849764,-480.0,0.00020525,2]
[382202367,1756543849774,-1179.63,0.00020525,2]
[382202368,1756543849783,-480.0,0.00020525,2]
[382202369,1756543849793,-480.0,0.00020525,2]
[382202370,1756543849803,-480.0,0.00020525,2]
[382202371,1756543849812,-480.0,0.00020525,2]
[382202372,1756543849822,-480.0,0.00020525,2]
[382202373,1756543849831,-480.0,0.00020525,2]
[382202374,1756543849841,-779.75,0.00020525,2]
[382202375,1756543849850,-480.0,0.00020525,2]
[382202376,1756543849860,-1442.81,0.00020525,2]
[382202377,1756543849870,-552.47,0.00020525,2]
[382202378,1756543849879,-480.0,0.00020525,2]
[382202379,1756543849889,-480.0,0.00020525,2]
[382202380,1756543849896,-480.0,0.00020525,2]
[382202381,1756543849904,-480.0,0.00020525,2]
[382202382,1756543849913,-480.0,0.00020525,2]
[382202383,1756543849920,-480.0,0.00020525,2]
[382202384,1756543849929,-480.0,0.00020525,2]
[382202385,1756543849937,-480.0,0.00020525,2]
[382202386,1756543849946,-480.0,0.00020525,2]
[382202387,1756543849953,-480.0,0.00020525,2]
[382202388,1756543849961,-1178.19,0.00020525,2]
[382202389,1756543849969,-1146.42,0.00020525,2]
[382202390,1756543849977,-480.0,0.00020525,2]
[382202391,1756543849986,-886.59,0.00020525,2]
[382202392,1756543849995,-480.0,0.00020525,2]
[382202393,1756543850004,-480.0,0.00020525,2]
[382202394,1756543850014,-480.0,0.00020525,2]
[382202395,1756543850024,-480.0,0.00020525,2]
[382202396,1756543850034,-494.76,0.00020525,2]
[382202397,1756543850043,-758.39,0.00020525,2]
[382202398,1756543850052,-480.0,0.00020525,2]
[382202399,1756543850062,-919.88,0.00020525,2]
[382202400,1756543850071,-1566.92,0.00020525,2]
[382202401,1756543850080,-480.0,0.00020525,2]
[382202402,1756543850091,-480.0,0.00020525,2]
[382202403,1756543850101,-480.0,0.00020525,2]
[382202404,1756543850111,-480.0,0.00020525,2]
[382202405,1756543850121,-480.0,0.00020525,2]
[382202406,1756543850131,-493.21,0.00020525,2]
[382202407,1756543850141,-480.0,0.00020525,2]
[382202408,1756543850150,-611.4,0.00020525,2]
[382202409,1756543850160,-480.0,0.00020525,2]
[382202410,1756543850169,-484.78201672,0.00020525,2]
[382202411,1756543850180,-480.0,0.00020525,2]
[382202412,1756543850189,-480.0,0.00020525,2]
[382202413,1756543850199,-1420.72,0.00020525,2]
[382202414,1756543850209,-1601.31,0.00020525,2]
[382202415,1756543850219,-1132.46,0.00020525,2]
[382202416,1756543850229,-1418.83,0.00020525,2]
[382202417,1756543850239,-480.0,0.00020525,2]
[382202418,1756543850249,-480.0,0.00020525,2]
[382202419,1756543850260,-480.0,0.00020525,2]
[382202420,1756543850270,-480.0,0.00020525,2]
[382202421,1756543850279,-480.0,0.00020525,2]
[382202422,1756543850290,-528.46,0.00020525,2]
[382202423,1756543850300,-546.04,0.00020525,2]
[382202424,1756543850311,-501.34,0.00020525,2]
[382202425,1756543850321,-1113.73,0.00020525,2]
[382202426,1756543850331,-480.0,0.00020525,2]
[382202427,1756543850340,-480.0,0.00020525,2]
[382202428,1756543850350,-480.0,0.00020525,2]
[382202429,1756543850359,-480.0,0.00020525,2]
[382202430,1756543850369,-480.0,0.00020525,2]
[382202431,1756543850379,-1382.71,0.00020525,2]
[382202432,1756543850388,-480.0,0.00020525,2]
[382202433,1756543850398,-151.0,0.00020525,2]
[382202434,1756543850407,-480.0,0.00020525,2]
[382202435,1756543850416,-480.0,0.00020525,2]
[382202436,1756543850428,-480.0,0.00020525,2]
[382202437,1756543850438,-480.0,0.00020525,2]
[382202438,1756543850448,-480.0,0.00020525,2]
[382202439,1756543850460,-480.0,0.00020525,2]
[382202440,1756543850470,-480.0,0.00020525,2]
[382202441,1756543850480,-480.0,0.00020525,2]
[382202442,1756543850490,-480.0,0.00020525,2]
[382202443,1756543850501,-480.0,0.00020525,2]
[382202444,1756543850512,-480.0,0.00020525,2]
[382202445,1756543850522,-480.0,0.00020525,2]
[382202446,1756543850532,-693.6,0.00020525,2]
[382202447,1756543850542,-480.0,0.00020525,2]
[382202448,1756543850552,-480.0,0.00020525,2]
[382202449,1756543850562,-1142.23,0.00020525,2]
[382202450,1756543850575,-1343.78,0.00020525,2]
[382202451,1756543850586,-480.0,0.00020525,2]
[382202452,1756543850596,-480.0,0.00020525,2]
[382202453,1756543850605,-480.0,0.00020525,2]
[382202454,1756543850616,-1420.58,0.00020525,2]
[382202455,1756543850626,-480.0,0.00020525,2]
[382202456,1756543850635,-480.0,0.00020525,2]
[382202457,1756543850644,-480.0,0.00020525,2]
[382202458,1756543850655,-480.0,0.00020525,2]
[382202459,1756543850665,-480.0,0.00020525,2]
[382202460,1756543850674,-480.0,0.00020525,2]
[382202461,1756543850686,-480.0,0.00020525,2]
[382202462,1756543850695,-480.0,0.00020525,2]
[382202463,1756543850705,-580.38,0.00020525,2]
[382202464,1756543850715,-480.0,0.00020525,2]
[382202465,1756543850725,-480.0,0.00020525,2]
[382202466,1756543850734,-480.0,0.00020525,2]
[382202467,1756543850744,-480.0,0.00020525,2]
[382202468,1756543850753,-480.0,0.00020525,2]
[382202469,1756543850763,-480.0,0.00020525,2]
[382202470,1756543850772,-480.0,0.00020525,2]
[382202471,1756543850782,-1158.66,0.00020525,2]
[382202472,1756543850792,-480.0,0.00020525,2]
[382202473,1756543850802,-821.44,0.00020525,2]
[382202474,1756543850812,-1109.26,0.00020525,2]
[382202475,1756543850821,-480.0,0.00020525,2]
[382202476,1756543850831,-480.0,0.00020525,2]
[382202477,1756543850841,-1395.67,0.00020525,2]
[382202478,1756543850850,-480.0,0.00020525,2]
[382202479,1756543850861,-480.0,0.00020525,2]
[382202480,1756543850871,-1702.22,0.00020525,2]
[382202481,1756543850881,-480.0,0.00020525,2]
[382202482,1756543850891,-480.0,0.00020525,2]
[382202483,1756543850901,-480.0,0.00020525,2]
[382202484,1756543850911,-610.26,0.00020525,2]
[382202485,1756543850921,-1233.39,0.00020525,2]
[382202486,1756543850932,-698.86,0.00020525,2]
[382202487,1756543850942,-480.0,0.00020525,2]
[382202488,1756543850951,-480.0,0.00020525,2]
[382202489,1756543850961,-486.09044466,0.00020525,2]
[382202490,1756543850970,-480.0,0.00020525,2]
[382202491,1756543850979,-480.0,0.00020525,2]
[382202492,1756543850989,-480.0,0.00020525,2]
[382202493,1756543850999,-480.0,0.00020525,2]
[382202494,1756543851009,-480.0,0.00020525,2]
[382202495,1756543851018,-1141.75,0.00020525,2]
[382202496,1756543851027,-480.0,0.00020525,2]
[382202497,1756543851037,-480.0,0.00020525,2]
[382202498,1756543851046,-480.0,0.00020525,2]
[382202499,1756543851056,-1320.51,0.00020525,2]
[382202500,1756543851065,-480.0,0.00020525,2]
[382202501,1756543851075,-480.0,0.00020525,2]
[382202502,1756543851084,-1580.04,0.00020525,2]
[382202503,1756543851093,-480.0,0.00020525,2]
[382202504,1756543851103,-1147.14,0.00020525,2]
[382202505,1756543851112,-480.0,0.00020525,2]
[382202506,1756543851122,-774.13,0.00020525,2]
[382202507,1756543851131,-480.0,0.00020525,2]
[382202508,1756543851141,-480.0,0.00020525,2]
[382202509,1756543851152,-480.0,0.00020525,2]
[382202510,1756543851161,-480.0,0.00020525,2]
[382202511,1756543851170,-480.0,0.00020525,2]
[382202512,1756543851179,-480.0,0.00020525,2]
[382202513,1756543851189,-480.0,0.00020525,2]
[382202514,1756543851198,-480.0,0.00020525,2]
[382202515,1756543851207,-480.0,0.00020525,2]
[382202516,1756543851217,-480.0,0.00020525,2]
[382202517,1756543851228,-480.0,0.00020525,2]
[382202518,1756543851237,-608.67,0.00020525,2]
[382202519,1756543851247,-480.0,0.00020525,2]
[382202520,1756543851256,-480.0,0.00020525,2]
[382202521,1756543851266,-480.0,0.00020525,2]
[382202522,1756543851275,-480.0,0.00020525,2]
[382202523,1756543851285,-1151.84,0.00020525,2]
[382202524,1756543851294,-480.0,0.00020525,2]
[382202525,1756543851303,-511.65,0.00020525,2]
[382202526,1756543851313,-480.0,0.00020525,2]
[382202527,1756543851323,-498.4,0.00020525,2]
[382202528,1756543851333,-480.0,0.00020525,2]
[382202529,1756543851343,-492.72,0.00020525,2]
[382202530,1756543851352,-480.0,0.00020525,2]
[382202531,1756543851361,-480.0,0.00020525,2]
[382202532,1756543851371,-480.0,0.00020525,2]
[382202533,1756543851381,-480.0,0.00020525,2]
[382202534,1756543851390,-1785.59,0.00020525,2]
[382202535,1756543851400,-480.0,0.00020525,2]
[382202536,1756543851410,-480.0,0.00020527,2]
[382202537,1756543851419,-480.0,0.00020527,2]
[382202538,1756543851429,-480.0,0.00020527,2]
[382202539,1756543851439,-480.0,0.00020527,2]
[382202540,1756543851448,-200.0,0.00020527,2]
[382202541,1756543851458,-1255.48,0.00020527,2]
[382202542,1756543851467,-572.6,0.00020527,2]
[382202543,1756543851476,-1134.7,0.00020527,2]
[382202544,1756543851485,-731.7,0.00020527,2]
[382202545,1756543851494,-1031.75,0.00020527,2]
[382202546,1756543851503,-480.0,0.00020527,2]
[382202547,1756543851513,-151.0,0.00020527,2]
[382202548,1756543851522,-151.0,0.00020527,2]
[382202549,1756543851531,-151.0,0.00020527,2]
[382202550,1756543851541,-480.0,0.00020527,2]
[382202551,1756543851551,-940.43,0.00020527,2]
[382202552,1756543851560,-1355.85,0.00020527,2]
[382202553,1756543851570,-1363.91,0.00020527,2]
[382202554,1756543851584,-480.0,0.00020527,2]
[382202555,1756543851593,-480.0,0.00020527,2]
[382202556,1756543851603,-799.45,0.00020527,2]
[382202557,1756543851612,-480.0,0.00020527,2]
[382202558,1756543851622,-664.04,0.00020527,2]